fUSD/lending_fUSD_20240301
["ID","MTS","AMOUNT","RATE_DAILY","PERIOD"]
[316000067,1709320255501,-500.0,0.00022465,2]
[316000068,1709320255510,-500.0,0.00022465,2]
[316000069,1709320255520,-500.0,0.00022465,2]
[316000070,1709320255529,-500.0,0.00022465,2]
[316000071,1709320255541,-500.0,0.00022465,2]
[316000072,1709320255551,-500.0,0.00022465,2]
[316000073,1709320255560,-500.0,0.00022465,2]
[316000074,1709320255569,-555.0,0.00022465,2]
[316000075,1709320255578,-500.0,0.00022465,2]
[316000076,1709320255588,-1263.89,0.00022465,2]
[316000077,1709320255597,-500.0,0.00022465,2]
[316000078,1709320255606,-500.0,0.00022465,2]
[316000079,1709320255617,-500.0,0.00022465,2]
[316000080,1709320255627,-526.52951663,0.00022465,2]
[316000081,1709320255635,-500.0,0.00022465,2]
[316000082,1709320255645,-500.0,0.00022465,2]
[316000083,1709320255654,-500.0,0.00022465,2]
[316000084,1709320255663,-500.0,0.00022465,2]
[316000085,1709320255672,-500.0,0.00022465,2]
[316000086,1709320255682,-500.0,0.00022465,2]
[316000087,1709320255691,-964.22,0.00022465,2]
[316000088,1709320255701,-500.0,0.00022465,2]
[316000089,1709320255711,-500.0,0.00022465,2]
[316000090,1709320255720,-500.0,0.00022465,2]
[316000091,1709320255729,-569.76,0.00022465,2]
[316000092,1709320255739,-500.0,0.00022465,2]
[316000093,1709320255748,-500.0,0.00022465,2]
[316000094,1709320255757,-500.0,0.00022465,2]
[316000095,1709320255767,-2152.64,0.00022465,2]
[316000096,1709320255777,-500.0,0.00022465,2]
[316000097,1709320255787,-500.0,0.00022465,2]
[316000098,1709320255796,-500.0,0.00022465,2]
[316000099,1709320255806,-500.0,0.00022465,2]
[316000100,1709320255816,-500.0,0.00022465,2]
[316000101,1709320255826,-500.0,0.00022465,2]
[316000102,1709320255836,-869.51,0.00022465,2]
[316000103,1709320255845,-500.0,0.00022465,2]
[316000104,1709320255855,-500.0,0.00022465,2]
[316000105,1709320255865,-500.0,0.00022465,2]
[316000106,1709320255877,-878.87,0.00022465,2]
[316000107,1709320255886,-1152.74,0.00022465,2]
[316000108,1709320255896,-500.0,0.00022465,2]
[316000109,1709320255905,-500.0,0.00022465,2]
[316000110,1709320255914,-500.0,0.00022465,2]
[316000111,1709320255923,-500.0,0.00022465,2]
[316000112,1709320256099,-500.0,0.00022465,2]
[316000113,1709320256108,-3725.49,0.00022465,2]
[316000114,1709320256119,-223.42,0.00022465,2]
[316000115,1709320256128,-500.0,0.00022465,2]
[316000116,1709320256138,-500.0,0.00022465,2]
[316000117,1709320256147,-500.0,0.00022465,2]
[316000118,1709320256158,-500.0,0.00022465,2]
[316000119,1709320256167,-837.45,0.00022465,2]
[316000120,1709320256178,-500.0,0.00022465,2]
[316000121,1709320256187,-500.0,0.00022465,2]
[316000122,1709320256198,-500.0,0.00022465,2]
[316000123,1709320256207,-500.0,0.00022465,2]
[316000124,1709320256217,-500.0,0.00022465,2]
[316000125,1709320256227,-500.0,0.00022465,2]
[316000126,1709320256236,-500.0,0.00022465,2]
[316000127,1709320256246,-500.0,0.00022465,2]
[316000128,1709320256256,-500.0,0.00022465,2]
[316000129,1709320256266,-500.0,0.00022465,2]
[316000130,1709320256275,-500.0,0.00022465,2]
[316000131,1709320256285,-500.0,0.00022465,2]
[316000132,1709320256294,-500.0,0.00022465,2]
[316000133,1709320256303,-1387.81,0.00022465,2]
[316000134,1709320256312,-500.0,0.00022465,2]
[316000135,1709320256322,-1558.13,0.00022465,2]
[316000136,1709320256331,-500.0,0.00022465,2]
[316000137,1709320256341,-500.0,0.00022465,2]
[316000138,1709320256350,-1310.38,0.00022465,2]
[316000139,1709320256360,-500.0,0.00022465,2]
[316000140,1709320256372,-802.0,0.00022465,2]
[316000141,1709320256382,-500.0,0.00022465,2]
[316000142,1709320256391,-500.0,0.00022465,2]
[316000143,1709320256401,-2997.13,0.00022465,2]
[316000144,1709320256411,-559.8,0.00022465,2]
[316000145,1709320256421,-910.04,0.00022465,2]
[316000146,1709320256431,-539.34,0.00022465,2]
[316000147,1709320256440,-500.0,0.00022465,2]
[316000148,1709320256449,-500.0,0.00022465,2]
[316000149,1709320256459,-500.0,0.00022465,2]
[316000150,1709320256468,-3691.99,0.00022465,2]
[316000151,1709320256477,-525.0,0.00022465,2]
[316000152,1709320256487,-500.0,0.00022465,2]
[316000153,1709320256496,-500.0,0.00022465,2]
[316000154,1709320256506,-500.0,0.00022465,2]
[316000155,1709320256516,-500.0,0.00022465,2]
[316000156,1709320256525,-922.38,0.00022465,2]
[316000157,1709320256537,-961.88,0.00022465,2]
[316000158,1709320256547,-512.8,0.00022465,2]
[316000159,1709320256556,-575.84,0.00022465,2]
[316000160,1709320256566,-500.0,0.00022465,2]
[316000161,1709320256576,-500.0,0.00022465,2]
[316000162,1709320256585,-621.15,0.00022465,2]
[316000163,1709320256595,-1501.8,0.00022465,2]
[316000164,1709320256604,-734.63,0.00022465,2]
[316000165,1709320256615,-500.0,0.00022465,2]
[316000166,1709320256624,-578.43,0.00022465,2]
[316000167,1709320256634,-565.62,0.00022465,2]
[316000168,1709320256643,-500.0,0.00022465,2]
[316000169,1709320256652,-500.0,0.00022465,2]
[316000170,1709320256661,-781.88,0.00022465,2]
[316000171,1709320256671,-500.0,0.00022465,2]
[316000172,1709320256680,-500.0,0.00022465,2]
[316000173,1709320256690,-663.68,0.00022465,2]
[316000174,1709320256700,-500.0,0.00022465,2]
[316000175,1709320256709,-500.0,0.00022465,2]
[316000176,1709320256719,-500.0,0.00022465,2]
[316000177,1709320256728,-500.0,0.00022465,2]
[316000178,1709320256737,-500.0,0.00022465,2]
[316000179,1709320256747,-3725.24,0.00022465,2]
[316000180,1709320256756,-500.0,0.00022465,2]
[316000181,1709320256765,-500.0,0.00022465,2]
[316000182,1709320256774,-500.0,0.00022465,2]
[316000183,1709320256784,-2364.96,0.00022465,2]
[316000184,1709320256794,-500.0,0.00022465,2]
[316000185,1709320256803,-1864.01,0.00022465,2]
[316000186,1709320256813,-500.0,0.00022465,2]
[316000187,1709320256822,-500.0,0.00022465,2]
[316000188,1709320256832,-259.31089828,0.00022465,2]
[316000189,1709320256843,-500.0,0.00022465,2]
[316000190,1709320256853,-837.81,0.00022465,2]
[316000191,1709320256863,-500.0,0.00022465,2]
[316000192,1709320256873,-500.0,0.00022465,2]
[316000193,1709320256882,-2565.92,0.00022465,2]
[316000194,1709320256892,-500.0,0.00022465,2]
[316000195,1709320256901,-500.0,0.00022465,2]
[316000196,1709320256912,-1484.75,0.00022465,2]
[316000197,1709320256922,-500.0,0.00022465,2]
[316000198,1709320256931,-500.0,0.00022465,2]
[316000199,1709320256941,-1661.66,0.00022465,2]
[316000200,1709320256951,-500.0,0.00022465,2]
[316000201,1709320256961,-500.0,0.00022465,2]
[316000202,1709320256971,-989.57,0.00022465,2]
[316000203,1709320256980,-500.0,0.00022465,2]
[316000204,1709320256990,-500.0,0.00022465,2]
[316000205,1709320257000,-842.62,0.00022465,2]
[316000206,1709320257010,-500.0,0.00022465,2]
[316000207,1709320257019,-500.0,0.00022465,2]
[316000208,1709320257028,-500.0,0.00022465,2]
[316000209,1709320257038,-500.0,0.00022465,2]
[316000210,1709320257047,-500.0,0.00022465,2]
[316000211,1709320257057,-500.0,0.00022465,2]
[316000212,1709320257066,-500.0,0.00022465,2]
[316000213,1709320257075,-4557.4,0.00022465,2]
[316000214,1709320257084,-500.0,0.00022465,2]
[316000215,1709320257093,-500.0,0.00022465,2]
[316000216,1709320257102,-500.0,0.00022472,2]
[316000217,1709320257111,-562.44703021,0.00022473,2]
[316000218,1709320257121,-171.46,0.00022494,2]
[316000219,1709320257129,-150.0,0.00022497,2]
[316000220,1709320257139,-500.0,0.00022499,2]
[316000221,1709320257148,-18050.92610262,0.000225,2]
[316000222,1709320257158,-155.33,0.00022501,2]
[316000223,1709320257167,-150.0,0.0002252,2]
[316000224,1709320257177,-282.24,0.00022546,2]
[316000225,1709320257186,-150.0,0.00022556,2]
[316000226,1709320257195,-1167.307,0.00022558,2]
[316000227,1709320257205,-150.0,0.0002256,2]
[316000228,1709320257215,-150.0,0.00022574,2]
[316000229,1709320257224,-570.42,0.00022575,2]
[316000230,1709320257234,-500.0,0.00022575,2]
[316000231,1709320257243,-500.0,0.00022575,2]
[316000232,1709320257252,-500.0,0.00022575,2]
[316000233,1709320257261,-459.98626038,0.00022575,2]
[316000234,1709320257271,-500.0,0.00022575,2]
[316000235,1709320257280,-160.92669764,0.00022575,2]
[316000236,1709320257290,-500.0,0.00022575,2]
[316000237,1709320257299,-500.0,0.00022575,2]
[316000238,1709320257308,-500.0,0.00022575,2]
[316000239,1709320257317,-500.0,0.00022575,2]
[316000240,1709320257326,-500.0,0.00022575,2]
[316000241,1709320257336,-500.0,0.00022575,2]
[316000242,1709320257345,-500.0,0.00022575,2]
[316000243,1709320257354,-500.0,0.00022575,2]
[316000244,1709320257364,-527.94196937,0.00022575,2]
[316000245,1709320257373,-320.94,0.00022575,2]
[316000246,1709320257382,-500.0,0.00022575,2]
[316000247,1709320257392,-500.0,0.00022575,2]
[316000248,1709320257401,-500.0,0.00022575,2]
[316000249,1709320257410,-500.0,0.00022575,2]
[316000250,1709320257419,-571.18,0.00022575,2]
[316000251,1709320257429,-566.75,0.00022575,2]
[316000252,1709320257438,-242.53,0.00022575,2]
[316000253,1709320257447,-500.0,0.00022575,2]
[316000254,1709320257456,-1535.68,0.00022575,2]
[316000255,1709320257465,-500.0,0.00022575,2]
[316000256,1709320257474,-500.0,0.00022575,2]
[316000257,1709320257483,-395.5,0.00022575,2]
[316000258,1709320257493,-500.0,0.00022575,2]
[316000259,1709320257502,-500.0,0.00022575,2]
[316000260,1709320257511,-500.0,0.00022575,2]
[316000261,1709320257520,-500.0,0.00022575,2]
[316000262,1709320257531,-500.0,0.00022575,2]
[316000263,1709320257540,-500.0,0.00022575,2]
[316000264,1709320257549,-500.0,0.00022575,2]
[316000265,1709320257559,-500.0,0.00022575,2]
[316000266,1709320257568,-500.0,0.00022575,2]
[316000267,1709320257579,-150.0,0.00022575,2]
[316000268,1709320257588,-2419.06,0.00022575,2]
[316000269,1709320257598,-500.0,0.00022575,2]
[316000270,1709320257607,-500.0,0.00022575,2]
[316000271,1709320257618,-500.0,0.00022575,2]
[316000272,1709320257627,-497.45922956,0.00022575,2]
[316000273,1709320257637,-500.0,0.00022575,2]
[316000274,1709320257646,-500.0,0.00022575,2]
[316000275,1709320257656,-500.0,0.00022575,2]
[316000276,1709320257665,-500.0,0.00022575,2]
[316000277,1709320257675,-310.75812512,0.00022575,2]
[316000278,1709320257684,-500.0,0.00022575,2]
[316000279,1709320257694,-500.0,0.00022575,2]
[316000280,1709320257704,-285.05910809,0.00022575,2]
[316000281,1709320257714,-500.0,0.00022575,2]
[316000282,1709320257723,-500.0,0.00022575,2]
[316000283,1709320257733,-500.0,0.00022575,2]
[316000284,1709320257742,-500.0,0.00022575,2]
[316000285,1709320257756,-500.0,0.00022575,2]
[316000286,1709320257772,-500.0,0.00022575,2]
[316000287,1709320257786,-500.0,0.00022575,2]
[316000288,1709320257799,-500.0,0.00022575,2]
[316000289,1709320257811,-500.0,0.00022575,2]
[316000290,1709320257825,-500.0,0.00022575,2]
[316000291,1709320257840,-500.0,0.00022575,2]
[316000292,1709320257854,-500.0,0.00022575,2]
[316000293,1709320257868,-500.0,0.00022575,2]
[316000294,1709320257881,-500.0,0.00022575,2]
[316000295,1709320257893,-500.0,0.00022575,2]
[316000296,1709320257907,-500.0,0.00022575,2]
[316000297,1709320257920,-500.0,0.00022575,2]
[316000298,1709320257933,-500.0,0.00022575,2]
[316000299,1709320257947,-555.0,0.00022575,2]
[316000300,1709320257961,-549.52,0.00022575,2]
[316000301,1709320257971,-1263.89,0.00022575,2]
[316000302,1709320257986,-500.0,0.00022575,2]
[316000303,1709320257999,-500.0,0.00022575,2]
[316000304,1709320258013,-500.0,0.00022575,2]
[316000305,1709320258026,-500.0,0.00022575,2]
[316000306,1709320258037,-500.0,0.00022575,2]
[316000307,1709320258051,-500.0,0.00022575,2]
[316000308,1709320258064,-500.0,0.00022575,2]
[316000309,1709320258078,-500.0,0.00022575,2]
[316000310,1709320258092,-500.0,0.00022575,2]
[316000311,1709320258106,-964.22,0.00022575,2]
[316000312,1709320258119,-500.0,0.00022575,2]
[316000313,1709320258130,-500.0,0.00022575,2]
[316000314,1709320258140,-500.0,0.00022575,2]
[316000315,1709320258151,-569.76,0.00022575,2]
[316000316,1709320258165,-500.0,0.00022575,2]
[316000317,1709320258176,-500.0,0.00022575,2]
[316000318,1709320258190,-500.0,0.00022575,2]
[316000319,1709320258202,-2152.64,0.00022575,2]
[316000320,1709320258213,-500.0,0.00022575,2]
[316000321,1709320258224,-500.0,0.00022575,2]
[316000322,1709320258236,-500.0,0.00022575,2]
[316000323,1709320258248,-500.0,0.00022575,2]
[316000324,1709320258259,-500.0,0.00022575,2]
[316000325,1709320258271,-500.0,0.00022575,2]
[316000326,1709320258283,-869.51,0.00022575,2]
[316000327,1709320258295,-321.76662322,0.00022575,2]
[316000328,1709320258307,-500.0,0.00022575,2]
[316000329,1709320258318,-878.87,0.00022575,2]
[316000330,1709320258330,-500.0,0.00022575,2]
[316000331,1709320258344,-1152.74,0.00022575,2]
[316000332,1709320258356,-500.0,0.00022575,2]
[316000333,1709320258368,-500.0,0.00022575,2]
[316000334,1709320258380,-500.0,0.00022575,2]
[316000335,1709320258392,-500.0,0.00022575,2]
[316000336,1709320258403,-500.0,0.00022575,2]
[316000337,1709320258414,-3725.49,0.00022575,2]
[316000338,1709320258426,-500.0,0.00022575,2]
[316000339,1709320258438,-500.0,0.00022575,2]
[316000340,1709320258450,-500.0,0.00022575,2]
[316000341,1709320258461,-500.0,0.00022575,2]
[316000342,1709320258472,-837.45,0.00022575,2]
[316000343,1709320258484,-500.0,0.00022575,2]
[316000344,1709320258496,-500.0,0.00022575,2]
[316000345,1709320258508,-500.0,0.00022575,2]
[316000346,1709320258520,-500.0,0.00022575,2]
[316000347,1709320258534,-500.0,0.00022575,2]
[316000348,1709320258546,-500.0,0.00022575,2]
[316000349,1709320258558,-500.0,0.00022575,2]
[316000350,1709320258571,-500.0,0.00022575,2]
[316000351,1709320258583,-500.0,0.00022575,2]
[316000352,1709320258595,-500.0,0.00022575,2]
[316000353,1709320258607,-500.0,0.00022575,2]
[316000354,1709320258620,-500.0,0.00022575,2]
[316000355,1709320258632,-500.0,0.00022575,2]
[316000356,1709320258643,-1387.81,0.00022575,2]
[316000357,1709320258655,-500.0,0.00022575,2]
[316000358,1709320258667,-1558.13,0.00022575,2]
[316000359,1709320258679,-151.0,0.00022575,7]
[316000360,1709320258690,-500.0,0.00022575,2]
[316000361,1709320258703,-500.0,0.00022575,2]
[316000362,1709320258715,-151.0,0.00022575,7]
[316000363,1709320258727,-1310.38,0.00022575,2]
[316000364,1709320258739,-500.0,0.00022575,2]
[316000365,1709320258751,-802.0,0.00022575,2]
[316000366,1709320258763,-500.0,0.00022575,2]
[316000367,1709320258775,-500.0,0.00022575,2]
[316000368,1709320258787,-2997.13,0.00022575,2]
[316000369,1709320258799,-151.0,0.00022575,7]
[316000370,1709320258811,-910.04,0.00022575,2]
[316000371,1709320258824,-539.34,0.00022575,2]
[316000372,1709320258836,-500.0,0.00022575,2]
[316000373,1709320258847,-351.249226,0.00022575,7]
[316000374,1709320258859,-500.0,0.00022575,2]
[316000375,1709320258872,-500.0,0.00022575,2]
[316000376,1709320258885,-3691.99,0.00022575,2]
[316000377,1709320258897,-351.249226,0.00022575,7]
[316000378,1709320258909,-525.0,0.00022575,2]
[316000379,1709320258921,-500.0,0.00022575,2]
[316000380,1709320258933,-500.0,0.00022575,2]
[316000381,1709320258946,-500.0,0.00022575,2]
[316000382,1709320258958,-500.0,0.00022575,2]
[316000383,1709320258970,-922.38,0.00022575,2]
[316000384,1709320258983,-961.88,0.00022575,2]
[316000385,1709320258995,-512.8,0.00022575,2]
[316000386,1709320259007,-575.84,0.00022575,2]
[316000387,1709320259019,-500.0,0.00022575,2]
[316000388,1709320259032,-500.0,0.00022575,2]
[316000389,1709320259044,-621.15,0.00022575,2]
[316000390,1709320259055,-1501.8,0.00022575,2]
[316000391,1709320259067,-734.63,0.00022575,2]
[316000392,1709320259079,-500.0,0.00022575,2]
[316000393,1709320259091,-578.43,0.00022575,2]
[316000394,1709320259102,-565.62,0.00022575,2]
[316000395,1709320259111,-500.0,0.00022575,2]
[316000396,1709320259121,-500.0,0.00022575,2]
[316000397,1709320259131,-151.0,0.00022575,2]
[316000398,1709320259141,-781.88,0.00022575,2]
[316000399,1709320259151,-500.0,0.00022575,2]
[316000400,1709320259161,-500.0,0.00022575,2]
[316000401,1709320259171,-663.68,0.00022575,2]
[316000402,1709320259181,-500.0,0.00022575,2]
[316000403,1709320259191,-500.0,0.00022575,2]
[316000404,1709320259201,-500.0,0.00022575,2]
[316000405,1709320259211,-500.0,0.00022575,2]
[316000406,1709320259221,-500.0,0.00022575,2]
[316000407,1709320259231,-3725.24,0.00022575,2]
[316000408,1709320259241,-500.0,0.00022575,2]
[316000409,1709320259251,-500.0,0.00022575,2]
[316000410,1709320259261,-500.0,0.00022575,2]
[316000411,1709320259271,-2364.96,0.00022575,2]
[316000412,1709320259281,-151.0,0.00022575,7]
[316000413,1709320259290,-500.0,0.00022575,2]
[316000414,1709320259300,-151.0,0.00022575,7]
[316000415,1709320259310,-1864.01,0.00022575,2]
[316000416,1709320259319,-500.0,0.00022575,2]
[316000417,1709320259329,-500.0,0.00022575,2]
[316000418,1709320259339,-151.0,0.00022575,7]
[316000419,1709320259348,-500.0,0.00022575,2]
[316000420,1709320259358,-837.81,0.00022575,2]
[316000421,1709320259368,-500.0,0.00022575,2]
[316000422,1709320259378,-283.961684,0.00022575,7]
[316000423,1709320259387,-500.0,0.00022575,2]
[316000424,1709320259397,-2565.92,0.00022575,2]
[316000425,1709320259407,-500.0,0.00022575,2]
[316000426,1709320259417,-246.77604,0.00022575,7]
[316000427,1709320259427,-500.0,0.00022575,2]
[316000428,1709320259436,-1484.75,0.00022575,2]
[316000429,1709320259446,-500.0,0.00022575,2]
[316000430,1709320259455,-500.0,0.00022575,2]
[316000431,1709320259465,-1661.66,0.00022575,2]
[316000432,1709320259475,-500.0,0.00022575,2]
[316000433,1709320259485,-500.0,0.00022575,2]
[316000434,1709320259494,-989.57,0.00022575,2]
[316000435,1709320259503,-500.0,0.00022575,2]
[316000436,1709320259513,-500.0,0.00022575,2]
[316000437,1709320259555,-842.62,0.00022575,2]
[316000438,1709320259565,-500.0,0.00022575,2]
[316000439,1709320259575,-500.0,0.00022575,2]
[316000440,1709320259584,-500.0,0.00022575,2]
[316000441,1709320259594,-500.0,0.00022575,2]
[316000442,1709320259603,-604.34,0.00022575,2]
[316000443,1709320259614,-151.0,0.00022575,7]
[316000444,1709320259625,-500.0,0.00022575,2]
[316000445,1709320259634,-4557.4,0.00022575,2]
[316000446,1709320259643,-500.0,0.00022575,2]
[316000447,1709320259653,-500.0,0.00022575,2]
[316000448,1709320259663,-13128.03880031,0.0002258,2]
[316000449,1709320259672,-500.0,0.00022581,2]
[316000450,1709320259682,-150.0,0.00022584,2]
[316000451,1709320259692,-2000.0,0.000226,2]
[316000452,1709320259702,-263.18,0.000226,2]
[316000453,1709320259712,-180.0,0.00022603,2]
[316000454,1709320260087,-178.0,0.00022644,2]
[316000455,1709320260104,-1500.0,0.00022649,2]
[316000456,1709320260113,-155.33,0.00022653,2]
[316000457,1709320260124,-150.0,0.00022668,2]
[316000458,1709320260133,-150.0,0.00022673,2]
[316000459,1709320260142,-150.0,0.00022681,2]
[316000460,1709320260151,-570.42,0.00022684,2]
[316000461,1709320260160,-500.0,0.00022684,2]
[316000462,1709320260170,-500.0,0.00022684,2]
[316000463,1709320260179,-629.78,0.00022684,2]
[316000464,1709320260189,-500.0,0.00022684,2]
[316000465,1709320260198,-500.0,0.00022684,2]
[316000466,1709320260208,-500.0,0.00022684,2]
[316000467,1709320260217,-220.48102746,0.00022684,2]
[316000468,1709320260227,-500.0,0.00022684,2]
[316000469,1709320260237,-500.0,0.00022684,2]
[316000470,1709320260247,-500.0,0.00022684,2]
[316000471,1709320260258,-500.0,0.00022684,2]
[316000472,1709320260267,-500.0,0.00022684,2]
[316000473,1709320260276,-500.0,0.00022684,2]
[316000474,1709320260286,-525.33,0.00022684,2]
[316000475,1709320260295,-500.0,0.00022684,2]
[316000476,1709320260305,-500.0,0.00022684,2]
[316000477,1709320260314,-1535.68,0.00022684,2]
[316000478,1709320260324,-500.0,0.00022684,2]
[316000479,1709320260333,-500.0,0.00022684,2]
[316000480,1709320260344,-571.04084385,0.00022684,2]
[316000481,1709320260353,-500.0,0.00022684,2]
[316000482,1709320260362,-500.0,0.00022684,2]
[316000483,1709320260374,-546.39532485,0.00022684,2]
[316000484,1709320260384,-500.0,0.00022684,2]
[316000485,1709320260393,-310.91434857,0.00022684,2]
[316000486,1709320260403,-500.0,0.00022684,2]
[316000487,1709320260413,-500.0,0.00022684,2]
[316000488,1709320260422,-150.0,0.00022684,2]
[316000489,1709320260431,-2419.06,0.00022684,2]
[316000490,1709320260440,-500.0,0.00022684,2]
[316000491,1709320260449,-500.0,0.00022684,2]
[316000492,1709320260459,-500.0,0.00022684,2]
[316000493,1709320260469,-500.0,0.00022684,2]
[316000494,1709320260478,-500.0,0.00022684,2]
[316000495,1709320260489,-500.0,0.00022684,2]
[316000496,1709320260498,-500.0,0.00022684,2]
[316000497,1709320260508,-500.0,0.00022684,2]
[316000498,1709320260517,-500.0,0.00022684,2]
[316000499,1709320260527,-500.0,0.00022684,2]
[316000500,1709320260540,-500.0,0.00022684,2]
[316000501,1709320260549,-500.0,0.00022684,2]
[316000502,1709320260558,-500.0,0.00022684,2]
[316000503,1709320260567,-500.0,0.00022684,2]
[316000504,1709320260578,-500.0,0.00022684,2]
[316000505,1709320260587,-500.0,0.00022684,2]
[316000506,1709320260596,-500.0,0.00022684,2]
[316000507,1709320260606,-500.0,0.00022684,2]
[316000508,1709320260616,-500.0,0.00022684,2]
[316000509,1709320260626,-500.0,0.00022684,2]
[316000510,1709320260635,-500.0,0.00022684,2]
[316000511,1709320260645,-621.59,0.00022684,2]
[316000512,1709320260654,-500.0,0.00022684,2]
[316000513,1709320260663,-500.0,0.00022684,2]
[316000514,1709320260673,-500.0,0.00022684,2]
[316000515,1709320260682,-555.0,0.00022684,2]
[316000516,1709320260691,-1263.89,0.00022684,2]
[316000517,1709320260701,-500.0,0.00022684,2]
[316000518,1709320260710,-500.0,0.00022684,2]
[316000519,1709320260719,-500.0,0.00022684,2]
[316000520,1709320260728,-500.0,0.00022684,2]
[316000521,1709320260738,-500.0,0.00022684,2]
[316000522,1709320260747,-217.447954,0.00022684,7]
[316000523,1709320260757,-500.0,0.00022684,2]
[316000524,1709320260766,-500.0,0.00022684,2]
[316000525,1709320260775,-500.0,0.00022684,2]
[316000526,1709320260784,-217.447954,0.00022684,7]
[316000527,1709320260793,-964.22,0.00022684,2]
[316000528,1709320260803,-500.0,0.00022684,2]
[316000529,1709320260812,-500.0,0.00022684,2]
[316000530,1709320260822,-500.0,0.00022684,2]
[316000531,1709320260832,-569.76,0.00022684,2]
[316000532,1709320260842,-500.0,0.00022684,2]
[316000533,1709320260853,-500.0,0.00022684,2]
[316000534,1709320260862,-500.0,0.00022684,2]
[316000535,1709320260874,-2152.64,0.00022684,2]
[316000536,1709320260883,-500.0,0.00022684,2]
[316000537,1709320260893,-500.0,0.00022684,2]
[316000538,1709320260902,-500.0,0.00022684,2]
[316000539,1709320260912,-500.0,0.00022684,2]
[316000540,1709320260921,-500.0,0.00022684,2]
[316000541,1709320260930,-869.51,0.00022684,2]
[316000542,1709320260940,-500.0,0.00022684,2]
[316000543,1709320260949,-151.0,0.00022684,7]
[316000544,1709320260959,-878.87,0.00022684,2]
[316000545,1709320260968,-500.0,0.00022684,2]
[316000546,1709320260977,-1152.74,0.00022684,2]
[316000547,1709320260987,-500.0,0.00022684,2]
[316000548,1709320260996,-500.0,0.00022684,2]
[316000549,1709320261006,-500.0,0.00022684,2]
[316000550,1709320261015,-500.0,0.00022684,2]
[316000551,1709320261024,-500.0,0.00022684,2]
[316000552,1709320261034,-3725.49,0.00022684,2]
[316000553,1709320261043,-500.0,0.00022684,2]
[316000554,1709320261052,-500.0,0.00022684,2]
[316000555,1709320261061,-151.0,0.00022684,7]
[316000556,1709320261070,-500.0,0.00022684,2]
[316000557,1709320261079,-500.0,0.00022684,2]
[316000558,1709320261088,-837.45,0.00022684,2]
[316000559,1709320261098,-500.0,0.00022684,2]
[316000560,1709320261108,-500.0,0.00022684,2]
[316000561,1709320261120,-500.0,0.00022684,2]
[316000562,1709320261130,-500.0,0.00022684,2]
[316000563,1709320261140,-500.0,0.00022684,2]
[316000564,1709320261150,-156.637293,0.00022684,7]
[316000565,1709320261160,-500.0,0.00022684,2]
[316000566,1709320261170,-500.0,0.00022684,2]